Cogmind - Beta 11.1 @@@ ROGUE MODE // 2022.06.08 @ 19:53:43 Player: SC1ENCE Result: Destroyed by G-47 Trooper with Particle Gun Performance ------------- Evolutions (2) 1000 Regions Visited (3) 600 Robots Destroyed (93) 465 Value Destroyed (2445) 2445 Prototype IDs (7) 140 Alien Tech Used (0) 0 Bonus (345) 345 TOTAL SCORE: 4995 Bonus ------- High Alert Combat Kills 345 Cogmind --------- Core Integrity 0/550 Matter 114/300 Energy 299/300 System Corruption 3% Temperature Cool (9) Movement Rolling (110) Ox2 Location -8/Materials Parts ------- > --- POWER (1) -------- (None) > --- PROPULSION (3) --- Light Treads Wheel > --- UTILITY (4) ------ Large Storage Unit Large Battery Signal Interpreter Hacking Suite > --- WEAPON (3) ------- Minigun Mini Grenade Launcher Katana > --- INVENTORY (15) --- Light Nuclear Core Light Nuclear Core Improved Heat Sink Improved Heat Sink Improved Sensor Array Particle Gun Particle Gun Peak State ------------ > --- POWER ------------ Light Angular Momentum Engine > --- PROPULSION ------- Light Treads Light Treads Wheel > --- UTILITY ---------- Large Storage Unit Improved Sensor Array Signal Interpreter High-powered Tractor Beam > --- WEAPON ----------- Pulse Rifle Minigun High-powered Shotgun > --- INVENTORY -------- Improved Ion Engine Improved Ion Engine Light Treads Light Treads Light Treads Wheel Large Battery Large Battery Field Recycling Unit Minigun Rocket Launcher Mini Grenade Launcher Mini Grenade Launcher [Rating: 26] Favorites ----------- Power Improved Ion Engine Engine Improved Ion Engine Power Core Light Nuclear Core Propulsion Light Treads Treads Light Treads Leg Aluminum Leg Wheel Wheel Utility Large Storage Unit Device Sensor Array Storage Large Storage Unit Processor Signal Interpreter Hackware Hacking Suite Weapon Minigun Energy Gun Field Laser Energy Cannon Advanced Beam Cannon Ballistic Gun Minigun Ballistic Cannon Improved Light Cannon Launcher Mini Grenade Launcher Slashing Weapon Katana Build | -11 -10 -9 -8 ------- Run | Scr Mat Mat Mat Slots Evolved 4 | . . 2 2 Power . | . . . . Propulsion 1 | . . . 1 Utility 2 | . . 1 1 Weapon 1 | . . 1 . Parts Attached 75 | 6 4 16 49 Power 10 | 1 . 2 7 Engine 6 | 1 . 2 3 Core 4 | . . . 4 Reactor . | . . . . Propulsion 28 | 2 2 4 20 Treads 15 | . 1 2 12 Leg 1 | 1 . . . Wheel 12 | 1 1 2 8 Hover . | . . . . Flight . | . . . . Utility 15 | 2 . 5 8 Device 6 | 1 . 1 4 Storage 6 | 1 . 2 3 Processor 2 | . . 2 . Hackware 1 | . . . 1 Protection . | . . . . Artifact . | . . . . Weapon 22 | 1 2 5 14 Energy Gun 7 | 1 1 2 3 Energy Cannon 1 | . . 1 . Ballistic Gun 7 | . . 1 6 Ballistic Cannon 2 | . . 1 1 Launcher 4 | . 1 . 3 Special Weapon . | . . . . Impact Weapon . | . . . . Slashing Weapon 1 | . . . 1 Piercing Weapon . | . . . . Special Melee Weapon . | . . . . Unidentified Prototypes 1 | . . 1 . Parts Lost 30 | . . 1 29 Power 4 | . . . 4 Propulsion 12 | . . 1 11 Utility 4 | . . . 4 Weapon 10 | . . . 10 Highest Loss Streak 10 | . . 1 10 To Critical Strikes . | . . . . Average Slot Usage (%) 98 | . 98 100 97 Engine 8 | . 14 11 4 Core 2 | . . . 4 Treads 14 | . 12 11 18 Wheel 9 | . 14 11 7 Device 11 | . 14 11 11 Storage 12 | . 14 11 13 Processor 8 | . . 10 9 Energy Gun 9 | . 14 10 8 Ballistic Gun 10 | . . 9 12 Launcher 8 | . 12 11 5 Naked Turns . | . . . . Heaviest Build 43 | 13 15 39 43 Greatest Support 60 | 16 20 20 60 Greatest Overweight (x) 4 | 3 1 3 4 Average Overweight (x) 2 | . . 1 2 Largest Inventory Capacity 15 | 8 8 15 15 Average Capacity 14 | 7 8 14 15 Most Carried 15 | 7 8 15 15 Average Carried 13 | 4 7 14 13 Final Capacity 15 | 8 8 15 15 Final Carried 15 | 7 8 15 7 Class Distribution -------------------- 56% | Mutant 23% | Scavenger-Mutant 17% | Skirmisher Dominant Class ---------------- Mutant | -10/Materials Mutant | -9/Materials Scavenger-Mutant | -8/Materials Resources | -11 -10 -9 -8 ----------- Run | Scr Mat Mat Mat Matter Collected 1939 | 260 48 551 1080 Remotely 228 | . . . 228 Salvage Created 2994 | 135 128 811 1920 Parts 203 | 10 13 64 116 Haulers Intercepted 8 | . 1 4 3 Recyclers Shooed 4 | . . 1 3 Parts Field Recycled . | . . . . Retrieved Matter . | . . . . Parts Self-Destructed . | . . . . Prevented . | . . . . Kills | -11 -10 -9 -8 ------- Run | Scr Mat Mat Mat Combat Hostiles Destroyed 54 | . 3 19 32 Melee 1 | . . . 1 Guns 37 | . 1 9 27 Cannons 5 | . . 3 2 AOE 11 | . 2 7 2 Classes Destroyed 13 | 2 4 3 4 Worker 4 | . . 1 3 Builder 11 | . 1 4 6 Tunneler 5 | 2 . 1 2 Hauler 8 | . 1 4 3 Recycler 3 | 1 . . 2 Operator 2 | . . . 2 Watcher 6 | . 1 3 2 Swarmer 7 | . . 7 . Grunt 36 | . 3 11 22 Brawler 2 | . . . 2 Duelist 1 | . . . 1 Sentry 7 | . . 1 6 Hunter 1 | . . . 1 Best Kill Streak 9 | 2 3 6 9 Combat Bots Only 8 | . 3 5 8 Max Kills in Single Turn 4 | 1 1 4 3 Gunslinging 1 | . . 1 . Exploded 2 | . 1 2 1 Melee 1 | . . . 1 Uniques/NPCs Destroyed . | . . . . Combat | -11 -10 -9 -8 -------- Run | Scr Mat Mat Mat Damage Taken 4312 | . 55 556 3701 Core 663 | . 35 77 551 Absorbed by Shields . | . . . . Regen/Repaired (Parts) 65 | . . . 65 Core Remaining (%) 88 | 100 86 80 . Volleys Fired 203 | 8 16 46 133 Largest 3 | 1 2 3 3 Hottest 123 | 40 75 118 123 Shots Fired 448 | 8 23 101 316 Gun 404 | 8 16 76 304 Cannon 20 | . . 16 4 Launcher 24 | . 7 9 8 Special . | . . . . Kinetic 250 | . . 46 204 Thermal 142 | . . 38 104 Explosive 24 | . 7 9 8 Electromagnetic 32 | 8 16 8 . Robot Hit Streak 12 | 5 3 7 12 Robot Miss Streak 5 | 3 4 5 5 Penetration Max . | . . . . Secondary Targets 4 | . . 2 2 Max Gunslinging Chain 1 | . . 1 1 Shots Hit Robots 267 | 5 11 51 200 Core Hits 156 | 3 9 39 105 Critical Kills . | . . . . Critical Parts Destroyed 2 | . . . 2 Critical Strikes 6 | . . 1 5 Burn 2 | . . . 2 Destroy 2 | . . . 2 Corrupt 1 | . . 1 . Sever 1 | . . . 1 Melee Attacks 5 | . . . 5 Impact . | . . . . Slashing 5 | . . . 5 Piercing . | . . . . Sneak Attacks . | . . . . Combat Hostiles . | . . . . Follow-up Attacks . | . . . . Damage Inflicted 6455 | 158 432 1748 4117 Guns 4354 | 80 109 780 3385 Cannons 278 | . . 207 71 Explosions 1676 | 78 323 720 555 Melee 93 | . . . 93 Ramming 54 | . . 41 13 Kinetic 2962 | . . 583 2379 Thermal 1563 | 78 . 408 1077 Explosive 1525 | . 323 647 555 Electromagnetic 258 | 80 109 69 . Impact . | . . . . Slashing 93 | . . . 93 Piercing . | . . . . Highest Corruption 5 | . . 5 3 Average Corruption 2 | . . 2 1 Corruption Purged . | . . . . Corruption Blocked . | . . . . Effects 32 | . . 15 17 Message Errors 5 | . . 2 3 Matter Fused 9 | . . 5 4 Heat Flow Errors 1 | . . 1 . Energy Discharges 2 | . . 2 . Parts Rejected 1 | . . . 1 Data Loss (minor) 6 | . . 1 5 Data Loss (major) 4 | . . 3 1 Weapon Failures 4 | . . 1 3 Overload Shots . | . . . . Overflow Damage 40 | . . 40 . Projectiles . | . . . . Explosions 40 | . . 40 . Melee . | . . . . Knockbacks 3 | . . . 3 Impact 1 | . . . 1 Kinetic 2 | . . . 2 Secondary . | . . . . Self-Inflicted Damage 134 | . . 128 6 Shots 2 | . . 2 . Rammed 8 | . . 6 2 Targets Rammed 8 | . . 6 2 Kicked . | . . . . Crushed . | . . . . Highest Temperature 384 | . 69 272 384 Average Temperature 101 | . 27 73 118 Received Heat Transfer 2283 | . 30 147 2106 Effects 5 | . . . 5 Shutdowns 1 | . . . 1 Energy Bleed 2 | . . . 2 Interference 2 | . . . 2 Siege Activations . | . . . . Robots Corrupted . | . . . . Combat Hostiles . | . . . . Parts Fried . | . . . . Impact Corruptions . | . . . . Robots Melted . | . . . . Combat Hostiles . | . . . . Parts Melted 1 | . . 1 . Heat Transferred 3492 | 100 . 803 2589 Parts Sabotaged . | . . . . Parts Stolen . | . . . . Parts Stripped . | . . . . Power Chain Reactions 2 | 1 . 1 . Missiles Intercepted . | . . . . Alert | -11 -10 -9 -8 ------- Run | Scr Mat Mat Mat Peak Influence 716 | 15 252 616 716 Initial 260 | . 9 105 260 Average 406 | 8 110 364 521 Maximum Alert Level 3 | . 1 2 3 Low Security (%) 13 | 100 72 11 . Level 1 40 | . 27 55 30 Level 2 44 | . . 33 65 Level 3 1 | . . . 3 Level 4 . | . . . . Level 5 . | . . . . High Security . | . . . . Max Security . | . . . . Squads Dispatched 13 | . 1 3 9 Investigation 4 | . 1 1 2 Extermination . | . . . . Reinforcement 5 | . . 2 3 Assault 1 | . . . 1 Garrison 3 | . . . 3 Intercept . | . . . . Searches Triggered . | . . . . Construction Impeded 1 | . . 1 . Haulers Reinforced . | . . . . Active Scanning Responses . | . . . . Cargo Convoy Interrupts . | . . . . Stealth | -11 -10 -9 -8 --------- Run | Scr Mat Mat Mat Distress Signals 5 | . . 1 4 Communications Jammed . | . . . . Distress Signals . | . . . . Times Spotted 89 | . 4 26 59 Peak Tracking Total 9 | . 3 5 9 Tactical Retreats 3 | . . . 3 Traps | -11 -10 -9 -8 ------- Run | Scr Mat Mat Mat Traps Triggered 4 | . . 3 1 Indirectly . | . . . . Trap Hack Attempts . | . . . . Triggered . | . . . . Disarmed . | . . . . Reprogrammed . | . . . . Reused . | . . . . Traps Extracted . | . . . . Installed . | . . . . Triggered . | . . . . Machines | -11 -10 -9 -8 ---------- Run | Scr Mat Mat Mat Machines Disabled 7 | . 3 4 . Max in Single Turn 2 | . 2 2 . Machines Sabotaged . | . . . . Garrisons Compromised . | . . . . Overloaded Fab Kills . | . . . . Hacking | -11 -10 -9 -8 --------- Run | Scr Mat Mat Mat Machines Accessed 21 | . 5 7 9 Terminals 13 | . 3 5 5 Fabricators . | . . . . Repair Stations 2 | . . 1 1 Recycling Units 3 | . 2 . 1 Scanalyzers 3 | . . 1 2 Garrison Access . | . . . . Total Hacks 66 | . 13 17 36 Successful 41 | . 4 13 24 Failed 25 | . 9 4 12 Catastrophic 5 | . 2 1 2 Database Lockouts . | . . . . Manual . | . . . . Terminals 46 | . 8 11 27 Fabricators . | . . . . Repair Stations 4 | . . 2 2 Recycling Units 7 | . 5 . 2 Scanalyzers 9 | . . 4 5 Garrison Access . | . . . . Terminal Hacks 24 | . 2 7 15 Record 9 | . 2 2 5 Robot Analysis 2 | . . . 2 Prototype ID Bank 3 | . . 2 1 Branch Access Points 1 | . . . 1 Emergency Access Points 1 | . . 1 . Machine Index 1 | . . . 1 Locate Traps 2 | . . 1 1 Transport Status 1 | . . . 1 Hauler Manifests 2 | . . . 2 Zone Layout 2 | . . 1 1 Fabricator Hacks . | . . . . Repair Station Hacks 4 | . . 2 2 Scan Component 2 | . . 1 1 Repair 2 | . . 1 1 Recycling Unit Hacks 4 | . 2 . 2 Report Inventory 2 | . 1 . 1 Retrieve Components 2 | . 1 . 1 Scanalyzer 9 | . . 4 5 Insert Component 5 | . . 2 3 Analyze 4 | . . 2 2 Garrison Access Hacks . | . . . . Unauthorized Hacks . | . . . . Terminals . | . . . . Fabricators . | . . . . Repair Stations . | . . . . Recycling Units . | . . . . Scanalyzers . | . . . . Garrison Access . | . . . . Data Cores Recovered . | . . . . Used . | . . . . Hacking Detections 16 | . 2 6 8 Full Trace Events 9 | . 2 3 4 Feedback Events 1 | . . . 1 Corruption 1 | . . . 1 Feedback Blocked . | . . . . Robot Schematics Acquired . | . . . . Robots Built . | . . . . Authchips . | . . . . Time . | . . . . Total Robot Build Rating . | . . . . Part Schematics Acquired 4 | . . 2 2 Parts Built . | . . . . Authchips . | . . . . Time . | . . . . Total Part Build Rating . | . . . . Parts Repaired 2 | . . 1 1 Time 82 | . . 44 38 Parts Recycled . | . . . . Recycled Matter . | . . . . Retrieved Matter . | . . . . Retrieved Components 8 | . 3 . 5 Parts Scanalyzed 4 | . . 2 2 Part Schematics Acquired 4 | . . 2 2 Parts Damaged 2 | . . 1 1 Bothacking | -11 -10 -9 -8 ------------ Run | Scr Mat Mat Mat Used RIF Installer . | . . . . Robots Hacked . | . . . . Non-combat . | . . . . Combat . | . . . . Robot Hacks Applied . | . . . . Relay Couplers Released . | . . . . Fabnet Peak Effective % . | . . . . Robots Rewired . | . . . . Allies Hacked . | . . . . Hacks Repelled . | . . . . Allies | -11 -10 -9 -8 -------- Run | Scr Mat Mat Mat Total Allies . | . . . . Largest Group . | . . . . Highest-Rated Group . | . . . . Highest-Rated Ally . | . . . . Total Orders . | . . . . Ally Attacks . | . . . . Total Damage . | . . . . Kills . | . . . . Allies Corrupted . | . . . . Allies Melted . | . . . . Intel | -11 -10 -9 -8 ------- Run | Scr Mat Mat Mat Robot Analysis Total 2 | . . . 2 Derelict Logs Recovered . | . . . . Drone Launches . | . . . . Drone Recoveries . | . . . . Exploration | -11 -10 -9 -8 ------------- Run | Scr Mat Mat Mat Turns Passed 3763 | 97 322 1592 1752 Spaces Moved 1883 | 63 202 737 881 Core 6 | 6 . . . Treads 536 | . 98 374 64 Legs 3 | 3 . . . Wheels 1338 | 54 104 363 817 Hover . | . . . . Flight . | . . . . Fastest Speed 50 | 50 95 95 110 Average Speed 149 | 104 127 183 130 Slowest Speed 240 | 200 160 240 240 Overloaded Moves . | . . . . Propulsion Burnouts . | . . . . Robots Hopped . | . . . . Cave-ins Triggered . | . . . . Exploration Rate (%) 34 | 4 31 49 55 Regions Visited 3 Branch Regions . Pre-discovered Areas . | . . . . Known Exits Taken 1 | . . 1 . Unknown Exits Taken 2 | 1 1 . . Scrap Searched . | . . . . Spaces Dug . | . . . . Terrain Destroyed 184 | 2 34 108 40 Melee . | . . . . Projectile . | . . . . AOE 184 | 2 34 108 40 Terrain Rammed . | . . . . Walls Destroyed . | . . . . Machines Disabled . | . . . . Actions | -11 -10 -9 -8 --------- Run | Scr Mat Mat Mat Total 2457 | 83 243 892 1239 Wait 167 | . 16 46 105 Move 1880 | 62 201 736 881 Hop . | . . . . Pick Up 74 | 7 3 22 42 Fast Attach 13 | 6 1 5 1 Attach 33 | . . 2 31 Detach . | . . . . Swap 29 | . 3 9 17 Drop 45 | . 3 20 22 Fire 203 | 8 16 46 133 Melee 5 | . . . 5 Ram 4 | . . 2 2 Kick . | . . . . Crush 4 | . . 4 . Escape Stasis . | . . . . Rewire . | . . . . Trap . | . . . . Miscellaneous . | . . . . Route ------- -11/Scrapyard -10/Materials -9/Materials (discovered 4 exits: *Mat x2 / [*Min x2]) -8/Materials (discovered 1 exit: *Fac) History --------- Turn | Location | Event 27 | -11/Scrapyard | Discovered new exit (range 14) 98 | -11/Scrapyard | Entered Materials 313 | -10/Materials | Discovered new exit (range 13) 317 | -10/Materials | Build established: Mutant 420 | -10/Materials | Entered another Materials area 420 | -9/Materials | Evolved 2 slots: Utility x1, Weapon x1 510 | -9/Materials | Discovered new exit (range 18) 673 | -9/Materials | Discovered new exit (range 17) 1323 | -9/Materials | Discovered new exit (range 15) 1425 | -9/Materials | Identified exit to Materials 1514 | -9/Materials | Repaired Broken Hpw. Tractor Beam 1841 | -9/Materials | Discovered exit to Materials (range 15) 2012 | -9/Materials | Entered another Materials area 2012 | -8/Materials | Evolved 2 slots: Propulsion x1, Utility x1 2560 | -8/Materials | Discovered new exit (range 3) 2562 | -8/Materials | Lost 3 parts (1p1n1u) 2789 | -8/Materials | Lost 5 parts (1n1u3w) 2814 | -8/Materials | Destroyed 8 combat bots 2868 | -8/Materials | Lost 3 parts (1n2w) 3038 | -8/Materials | Repaired Minigun 3107 | -8/Materials | Identified exit to Factory 3288 | -8/Materials | Build established: Scavenger-Mutant 3562 | -8/Materials | Garrison activated, responded to threat 3603 | -8/Materials | Core integrity fell below 50% 3612 | -8/Materials | First assault squad dispatched 3697 | -8/Materials | Core integrity fell below 20% 3758 | -8/Materials | Lost 10 parts (1p5n1u3w) 3764 | -8/Materials | Destroyed by G-47 Trooper with Particle Gun Last Messages --------------- 03727_ Lgt. Treads destroyed. 03731_ System corrupted: Component data lost. 03731_ K-01 Serf collects debris. 03731_ Acquired 53 matter. 03731_ U-05 Engineer lays Concrete. 03732_ U-05 Engineer builds a Wall. 03736_ G-47 Trooper Particle Gun severed. 03738_ K-01 Serf collects debris. 03741_ Acquired Lgt. Nuclear Core. 03746_ Acquired Particle Gun. 03747_ U-05 Engineer lays Concrete. 03750_ Acquired Particle Gun. 03750_ K-01 Serf destroyed. 03753_ Acquired Imp. Heat Sink. 03753_ K-01 Serf collects debris. 03757_ U-05 Engineer suffers critical hit (Burn). 03757_ U-05 Engineer destroyed. 03758_ K-01 Serf collects debris. 03761_ Lgt. Nuclear Core destroyed. 03762_ Lgt. Treads destroyed. Map ----- +----------------------------------------------------+ | """ #?????????# + % ### ### ##### | | """ ########### # #?# #?# #???# | | """ + ] ## ###########?# """ #?# ##### | | # ## ##??????????# """ #?# + | | * # ! # ############ """ ### ##### | | *% + # ## #???? | | ####### + ## #???? | | !#?# # ##+##### | | #?# % # ################## # # | | "" #?# ! #######???####?????????# # # | | "" #?# #???#######T"#?????????# # # | | "" #?##########???# # "########### + # | | "" #??????????????# # # | | #??????????????# = # # | | ##?##??????????????# ######## | | ???????????????????# ###+###########/#######?? | | ???????????????????## ## ## #?? | | ????????????????????# ## """ T ## #?? | | ????????????????????# ## """ ## % #?? | | ????????????????????# ## """ ## %[ #?? | | ????????????????????# ## ## *= #?? | | ????????????????????# ## ###+############# | | ???????????????????## ## #?# #?# """ # | | ???????????????????# ########### ### """ # | | ???????????????????# /* # """ # | | ???????????????????# @%= u + # | | ???????????????????# *%%! # "" # | | ???????????????????# !==*! ##### # "T ! # | | ???????????????????######g|k! #???# # "" # | | ??????????????????????? =%g= ##??# # # | | ?????????????????^?????= %[ ##??# #####/##### | | ?????????????????????^?!%= ! ##??# #???#%#???# | | ??????????????????????? | ##??# #???#=#???# | | ??????????????????????? ^^ ##??# #???#=#???# | | ???????????????????????? !!! ##??# #####%#???# | | ??????????????????????? !! ##??# #???# | | ??????????????????????? !! #####+#### #???# | | ??????????????????????? ## # ##### | | ??????????????????????? ## "T" # | | ???????????????????????############ """ # | | ??????????????????????????????????# + | | ??????????????????????????????????##########+#### | | ??????????????????????????????????# # | | ??????????????????????????????????# """ """ "" # | | ??????????????????????????????????# """ """ """ # | | ??????????????????????????????????+ """ """ S" # | | ??????????????????????????????????# # | | ??????????????????????????????????# [ # | | ?????????????????????????????#######+######+##### | | ???????????????????????????? | +----------------------------------------------------+ Best States ------------- Heat Dissipation 31 Energy Generation 18 Energy Capacity 465 Matter Stores 300 Matter Capacity 300 Sight Range 18 Robot Scan Range 15 Terrain Scan Density 10 Evasion (%) 41 Recoil Reduction 3 Offensive Hacking 10 Item Schematics ----------------- Hpw. Tractor Beam | -9/Materials | Scanalyzed Mni. Grenade Launcher | -9/Materials | Scanalyzed Lrg. Battery | -8/Materials | Scanalyzed Field Recycling Unit | -8/Materials | Scanalyzed Robot Schematics ------------------ None Fabricated ------------ Nothing Alien Tech Used ----------------- None Achievements -------------- None Challenges ------------ None Game ------ Seed OpticalLatentRay Manual? 0 Play Time 01:02:41 Cumulative 22.3 hours Start 2022.06.08 @ 18:49:47 End 2022.06.08 @ 19:53:43 Sessions 1 Manual Loads 0 Difficulty Rogue Special Mode None Game No. 18 Rogue 12 Adventurer 6 Explorer 0 Win Type - Total 0 Types 0/0/0/0/0/0/0/0/0 Lore% 8 Gallery% 25 Achievement% 17 Wizard Run 0 Options --------- ASCII 0 Keyboard 0 Movement Mouse Keybinds 0 Fullscreen 1 Font 18/X11 Map View 76x50 Tactical HUD 1 Map Filters NONE Filters NONE Steam 1 RUN: 42f9691b-06be-40fb-a463-eb4ab2b17a81